bitfinex/quotes_BTCUSD_20241211
["timestamp","ask_amount","ask_price","bid_price","bid_amount"]
[1733880284211,0.11301975,96448.0,96432.0,0.05271504]
[1733880284631,0.207384,96440.0,96432.0,0.05271504]
[1733880284839,0.10532524,96439.0,96432.0,0.05271504]
[1733880285043,0.11297718,96439.0,96432.0,0.05271504]
[1733880285247,0.207397,96434.0,96432.0,0.05371504]
[1733880285468,0.10532524,96433.0,96432.0,0.05271504]
[1733880285672,0.11297224,96433.0,96432.0,0.05271504]
[1733880286906,0.11697224,96433.0,96432.0,0.05571504]
[1733880287345,0.11697224,96433.0,96432.0,0.05271504]
[1733880287346,0.11297224,96433.0,96432.0,0.05271504]
[1733880287643,0.12197224,96433.0,96432.0,0.05271504]
[1733880288890,0.11697224,96433.0,96432.0,0.05271504]
[1733880289139,0.11297224,96433.0,96432.0,0.05271504]
[1733880289343,0.11597224,96433.0,96432.0,0.05271504]
[1733880289949,0.11297224,96433.0,96432.0,0.05271504]
[1733880290154,0.13897224,96433.0,96432.0,0.05271504]
[1733880290384,0.13997224,96433.0,96432.0,0.05271504]
[1733880290593,0.13697224,96433.0,96432.0,0.05271504]
[1733880290795,0.11297224,96433.0,96432.0,0.05271504]
[1733880290998,0.12097224,96433.0,96432.0,0.05271504]
[1733880291412,0.21221831,96433.0,96432.0,0.05271504]
[1733880291618,0.23521831,96433.0,96432.0,0.05271504]
[1733880292033,0.43071831,96433.0,96432.0,0.05271504]
[1733880292237,0.51251831,96433.0,96432.0,0.05271504]
[1733880293413,0.42127224,96433.0,96432.0,0.05271504]
[1733880295162,0.57127224,96433.0,96432.0,0.05271504]
[1733880295867,0.56827224,96433.0,96432.0,0.05271504]
[1733880296273,0.57627224,96433.0,96432.0,0.05371504]
[1733880296708,0.56327224,96433.0,96432.0,0.05271504]
[1733880296875,0.66837553,96433.0,96432.0,0.05271504]
[1733880297231,0.68537553,96433.0,96432.0,0.05471504]
[1733880297437,0.67637553,96433.0,96432.0,0.05371504]
[1733880297649,0.67637553,96433.0,96429.0,0.0146452]
[1733880297650,0.530404,96430.0,96429.0,3.8e-07]
[1733880297861,0.530404,96430.0,96420.0,8.56e-05]
[1733880297862,0.530423,96421.0,96420.0,9.8e-07]
[1733880298070,0.71754824,96421.0,96420.0,9.8e-07]
[1733880298276,0.71754824,96421.0,96420.0,0.0001656]
[1733880298481,0.81752664,96421.0,96420.0,0.0001656]
[1733880298682,0.81752664,96421.0,96420.0,6e-07]
[1733880298894,0.86342664,96421.0,96420.0,6e-07]
[1733880299342,0.87406037,96421.0,96420.0,6e-07]
[1733880301193,0.79056365,96421.0,96420.0,6e-07]
[1733880301399,0.47656365,96421.0,96420.0,6e-07]
[1733880301806,0.42002992,96421.0,96420.0,6e-07]
[1733880301947,0.32922992,96421.0,96420.0,6e-07]
[1733880302147,0.12180692,96421.0,96420.0,6e-07]
[1733880302356,0.13080692,96421.0,96420.0,6e-07]
[1733880302675,0.01648168,96421.0,96420.0,6e-07]
[1733880302838,0.009,96421.0,96420.0,6e-07]
[1733880303046,0.018,96421.0,96420.0,6e-07]
[1733880303465,0.009,96421.0,96420.0,6e-07]
[1733880303640,0.009,96421.0,96420.0,0.0814006]
[1733880303842,0.01,96421.0,96420.0,0.1312006]
[1733880304280,0.0001714,96450.0,96420.0,0.1312006]
[1733880304494,0.10532524,96449.0,96448.0,0.207365]
[1733880304709,0.00622765,96449.0,96448.0,0.207365]
[1733880305128,0.0001714,96450.0,96448.0,0.207365]
[1733880305337,0.10532524,96449.0,96428.0,0.01046522]
[1733880305573,0.1366106,96449.0,96420.0,0.1312006]
[1733880305783,0.00622914,96448.0,96420.0,0.1312006]
[1733880305977,0.001,96421.0,96420.0,0.1312006]
[1733880306583,0.207372,96445.0,96420.0,0.1312006]
[1733880306794,0.10532524,96444.0,96420.0,0.1312006]
[1733880306941,0.10532524,96444.0,96420.0,6e-07]
[1733880306942,0.414802,96432.0,96420.0,6e-07]
[1733880307146,0.01054966,96443.0,96420.0,6e-07]
[1733880307147,0.207404,96430.0,96420.0,6e-07]
[1733880307354,0.207379,96442.0,96420.0,6e-07]
[1733880307355,0.10532524,96429.0,96421.0,0.414845]
[1733880307512,0.0001714,96450.0,96421.0,0.10532524]
[1733880307717,0.0001714,96450.0,96449.0,0.207363]
[1733880308382,0.0001714,96450.0,96449.0,0.357363]
[1733880308822,0.0001714,96450.0,96449.0,0.207363]
[1733880309026,0.0001714,96450.0,96449.0,0.357363]
[1733880309233,0.0001714,96450.0,96449.0,0.37258754]
[1733880309234,0.00033673,96450.0,96449.0,0.37258754]
[1733880309440,0.00033673,96450.0,96449.0,0.22258754]
[1733880309670,0.00133673,96450.0,96449.0,0.37358754]
[1733880309871,0.00133673,96450.0,96449.0,0.22358754]
[1733880310300,0.00233673,96450.0,96449.0,0.22358754]
[1733880311017,0.20725,96502.0,96461.0,0.00241344]
[1733880311018,0.023,96498.0,96461.0,0.00241344]
[1733880311279,0.36550506,96502.0,96449.0,0.22258754]
[1733880311280,0.207298,96480.0,96469.0,0.00241344]
[1733880311524,0.207301,96478.0,96469.0,0.00241344]
[1733880311759,0.207305,96476.0,96465.0,0.00241344]
[1733880311972,0.10532524,96475.0,96469.0,0.00241344]
[1733880312190,0.207309,96474.0,96469.0,0.00241344]
[1733880312402,0.10532524,96473.0,96469.0,0.00241344]
[1733880313017,0.207314,96472.0,96469.0,0.00241344]
[1733880313221,0.414661,96465.0,96456.0,0.00241344]
[1733880313423,0.10532524,96471.0,96457.0,0.00241344]
[1733880313424,0.10532524,96464.0,96457.0,0.00241344]
[1733880314235,0.10532524,96464.0,96451.0,0.00241344]
[1733880314236,0.207347,96457.0,96451.0,0.00241344]
[1733880314438,0.10532524,96456.0,96451.0,0.00241344]
[1733880314645,0.10532524,96456.0,96447.0,0.00241344]
[1733880314646,0.31267324,96456.0,96447.0,0.00241344]
[1733880314854,0.207352,96454.0,96447.0,0.00241344]
[1733880315066,0.10532524,96453.0,96441.0,0.00241344]
[1733880315274,0.207368,96447.0,96441.0,0.00241344]
[1733880315475,0.1106788,96453.0,96441.0,0.00241344]
[1733880315476,0.10532524,96446.0,96441.0,0.00241344]
[1733880315902,0.00535356,96445.0,96441.0,0.00241344]
[1733880316751,0.21272556,96445.0,96441.0,0.00241344]
[1733880316950,0.00535356,96445.0,96441.0,0.00241344]
[1733880317376,0.00535356,96445.0,96429.0,0.00241344]
[1733880317377,0.207387,96438.0,96429.0,0.00241344]
[1733880317599,0.10532524,96437.0,96436.0,0.00241344]
[1733880317828,0.11065738,96437.0,96436.0,0.00241344]
[1733880319009,0.11065738,96437.0,96436.0,0.00441344]
[1733880319232,0.00533214,96437.0,96436.0,0.00441344]
[1733880319468,0.207343,96459.0,96444.0,0.20978744]
[1733880319692,0.10532524,96458.0,96451.0,0.00241344]
[1733880320210,0.11064983,96458.0,96451.0,0.00241344]
[1733880320455,0.11064983,96458.0,96431.0,0.00241344]
[1733880320684,0.10532524,96454.0,96431.0,0.00241344]
[1733880321155,0.207387,96438.0,96436.0,0.001]
[1733880321380,0.207378,96442.0,96436.0,0.001]
[1733880321381,0.10532524,96437.0,96436.0,0.001]
[1733880321607,0.10532524,96437.0,96431.0,0.00241344]
[1733880321608,0.11064924,96437.0,96431.0,0.00241344]
[1733880322570,0.52542924,96437.0,96431.0,0.00241344]
[1733880322791,0.11064924,96437.0,96431.0,0.00241344]
[1733880323421,0.11064924,96437.0,96431.0,0.00341344]
[1733880323860,0.11064924,96437.0,96431.0,0.001]
[1733880323861,0.207394,96435.0,96431.0,0.001]
[1733880324068,0.207397,96433.0,96431.0,0.001]
[1733880324282,0.10532524,96432.0,96431.0,0.001]
[1733880324701,0.10532524,96432.0,96423.0,0.00241344]
[1733880324925,0.1106372,96432.0,96430.0,8.57e-05]
[1733880325136,0.0054262,96432.0,96430.0,8.57e-05]
[1733880325351,0.0054262,96432.0,96431.0,0.20981544]
[1733880325560,0.00511424,96432.0,96431.0,0.20981544]
[1733880325763,0.00511424,96432.0,96431.0,0.26029262]
[1733880325946,0.00011424,96432.0,96431.0,0.34871616]
[1733880326409,0.0784,96484.0,96459.0,0.207341]
[1733880326410,0.207308,96475.0,96459.0,0.207341]
[1733880326619,0.10532524,96474.0,96459.0,0.20975444]
[1733880326833,0.11066349,96474.0,96445.0,0.00241344]
[1733880327035,0.11066349,96474.0,96431.0,0.13777172]
[1733880327036,0.10532524,96468.0,96444.0,0.00241344]
[1733880327238,0.207346,96458.0,96444.0,0.00241344]
[1733880327444,0.207348,96456.0,96444.0,0.00241344]
[1733880327651,0.14770091,96475.0,96444.0,0.00241344]
[1733880327652,0.10532524,96455.0,96444.0,0.00241344]
[1733880327866,0.207352,96454.0,96444.0,0.00241344]
[1733880328079,0.10532524,96453.0,96444.0,0.00241344]
[1733880328498,0.11067556,96453.0,96444.0,0.00241344]
[1733880328704,0.11067556,96453.0,96431.0,0.00241344]
[1733880328923,0.207385,96439.0,96431.0,0.00241344]
[1733880329132,0.31271324,96438.0,96430.0,8.57e-05]
[1733880329551,0.00535032,96437.0,96430.0,8.57e-05]
[1733880329779,0.207402,96431.0,96430.0,8.57e-05]
[1733880330008,0.31272724,96431.0,96430.0,8.57e-05]
[1733880330244,0.31804034,96431.0,96430.0,0.00025103]
[1733880332532,0.37478367,96431.0,96430.0,0.00025103]
[1733880332760,0.33723432,96431.0,96430.0,0.00025103]
[1733880332972,0.34423432,96431.0,96430.0,0.00025103]
[1733880333428,0.31572724,96431.0,96430.0,0.00025103]
[1733880333651,0.31272724,96431.0,96430.0,0.00025103]
[1733880333860,0.10532524,96431.0,96430.0,0.00025103]
[1733880334071,0.10732524,96431.0,96430.0,0.00025103]
[1733880334487,0.10532524,96431.0,96430.0,0.00025103]
[1733880335129,0.207379,96442.0,96430.0,0.00025103]
[1733880335339,0.2161,96454.0,96430.0,0.00025103]
[1733880335340,0.004,96431.0,96430.0,0.00025103]
[1733880335549,0.10532524,96441.0,96436.0,0.20739]
[1733880335975,0.207341,96460.0,96443.0,0.00241344]
[1733880336182,0.08,96473.0,96443.0,0.00241344]
[1733880336183,0.10532524,96459.0,96443.0,0.00241344]
[1733880336805,0.10532524,96459.0,96430.0,0.20765303]
[1733880336806,0.10532524,96459.0,96436.0,0.00241344]
[1733880337007,0.10532524,96459.0,96444.0,0.00241344]
[1733880337008,0.414689,96458.0,96444.0,0.00241344]
[1733880337282,0.10532524,96457.0,96445.0,0.207372]
[1733880337505,0.10532524,96458.0,96452.0,0.207355]
[1733880337711,0.10532524,96458.0,96457.0,0.207346]
[1733880337916,0.004,96459.0,96458.0,0.00241344]
[1733880338970,0.004,96459.0,96448.0,0.0463]
[1733880338971,0.11132524,96459.0,96455.0,0.00241344]
[1733880339189,0.01071869,96490.0,96461.0,0.207336]
[1733880339408,0.01071869,96490.0,96456.0,0.20976144]
[1733880339409,0.003,96457.0,96456.0,0.20976144]
[1733880339651,0.003,96457.0,96456.0,0.00241344]
[1733880339923,0.207314,96472.0,96460.0,0.00241344]
[1733880339924,0.207324,96468.0,96460.0,0.00241344]
[1733880340153,0.10532524,96467.0,96460.0,0.00241344]
[1733880340448,0.10532524,96467.0,96448.0,0.0463]
[1733880340449,0.414676,96461.0,96453.0,0.00458148]
[1733880340689,0.173,96489.0,96448.0,0.00241344]
[1733880340690,0.10532524,96460.0,96455.0,0.00241344]
[1733880340958,0.10532524,96460.0,96448.0,0.00016533]
[1733880340959,0.10532524,96460.0,96456.0,0.20976144]
[1733880341245,0.10532524,96460.0,96456.0,0.00241344]
[1733880341446,0.207341,96459.0,96456.0,0.00241344]
[1733880341651,0.31266624,96459.0,96456.0,0.003]
[1733880342070,0.207357,96452.0,96448.0,0.00257877]
[1733880342276,0.31268424,96451.0,96448.0,0.00016533]
[1733880342745,0.52004324,96451.0,96448.0,0.00016533]
[1733880342953,0.207363,96449.0,96448.0,0.00016533]
[1733880343162,0.31268824,96449.0,96448.0,0.00016533]
[1733880343801,0.33164374,96449.0,96448.0,0.00016533]
[1733880344224,0.31268824,96449.0,96448.0,0.00016533]
[1733880344441,0.33566489,96449.0,96448.0,0.00016533]
[1733880344652,0.37726165,96449.0,96448.0,0.00016533]
[1733880345089,0.40026165,96449.0,96448.0,0.00016533]
[1733880345540,0.55026165,96449.0,96448.0,0.00016533]
[1733880345753,0.58253359,96449.0,96448.0,0.00016533]
[1733880345965,0.80702015,96449.0,96448.0,3.3e-07]
[1733880346213,0.81602015,96449.0,96448.0,3.3e-07]
[1733880346551,0.35498856,96431.0,96430.0,8.57e-05]
[1733880346825,0.57529096,96431.0,96430.0,0.00019994]
[1733880347093,0.74426817,96431.0,96430.0,0.00019994]
[1733880347364,0.85343959,96431.0,96430.0,0.00019994]
[1733880347626,0.85343959,96431.0,96430.0,9.4e-07]
[1733880347841,0.99266968,96431.0,96430.0,9.4e-07]
[1733880348050,0.29758656,96421.0,96385.0,0.00241344]
[1733880348261,0.71434209,96421.0,96385.0,0.00241344]
[1733880348683,0.71434209,96421.0,96420.0,7e-07]
[1733880348684,0.93044209,96421.0,96420.0,7e-07]
[1733880348896,1.32560878,96421.0,96420.0,7e-07]
[1733880349165,1.32560878,96421.0,96385.0,0.00241344]
[1733880349166,0.207463,96403.0,96385.0,0.00241344]
[1733880349370,0.207466,96401.0,96385.0,0.00241344]
[1733880349576,0.31279124,96401.0,96385.0,0.00241344]
[1733880350234,0.31279124,96401.0,96374.0,0.00458636]
[1733880350235,0.31279124,96401.0,96386.0,0.00241344]
[1733880350449,0.31279124,96401.0,96390.0,0.00241344]
[1733880351065,0.31579124,96401.0,96390.0,0.00241344]
[1733880351274,0.31579124,96401.0,96377.0,0.00241344]
[1733880351496,0.31579124,96401.0,96370.0,8.57e-05]
[1733880351497,0.35810776,96401.0,96376.0,0.00241344]
[1733880351702,0.46321105,96401.0,96376.0,0.00241344]
[1733880352116,0.46321105,96401.0,96370.0,8.57e-05]
[1733880352325,0.83231105,96401.0,96370.0,8.57e-05]
[1733880352532,0.94961105,96401.0,96370.0,8.57e-05]
[1733880352741,0.95261105,96401.0,96370.0,8.57e-05]
[1733880352948,1.11487516,96401.0,96370.0,0.00249914]
[1733880353166,0.8102886,96401.0,96370.0,0.00249914]
[1733880353586,0.9762886,96401.0,96370.0,0.00249914]
[1733880353790,0.99870951,96401.0,96370.0,0.00249914]
[1733880354010,0.99170951,96401.0,96370.0,0.00249914]
[1733880354224,0.9602886,96401.0,96370.0,0.00249914]
[1733880354436,1.11587516,96401.0,96400.0,6e-07]
[1733880354641,1.11587516,96401.0,96370.0,8.57e-05]
[1733880354642,0.29758656,96386.0,96370.0,8.57e-05]
[1733880354846,0.33583424,96381.0,96380.0,0.00063735]
[1733880355054,0.35515076,96381.0,96380.0,0.00063735]
[1733880355464,0.33583424,96381.0,96380.0,0.00063735]
[1733880355669,0.35510221,96381.0,96380.0,0.00063735]
[1733880356080,0.33583424,96381.0,96380.0,0.00063735]
[1733880356293,0.44093753,96381.0,96380.0,0.00063735]
[1733880356776,0.49161974,96381.0,96380.0,0.00063735]
[1733880356991,0.50061974,96381.0,96380.0,0.00063735]
[1733880357199,0.46919883,96381.0,96380.0,0.00063735]
[1733880357609,0.48546696,96381.0,96380.0,0.00063735]
[1733880358050,0.81385986,96381.0,96380.0,0.00063735]
[1733880358260,0.88445986,96381.0,96380.0,0.00063735]
[1733880358683,0.89345986,96381.0,96380.0,0.00063735]
[1733880358897,0.87845986,96381.0,96380.0,0.00063735]
[1733880359364,0.92517713,96381.0,96380.0,3.5e-07]
[1733880359611,1.17957713,96381.0,96380.0,3.5e-07]
[1733880359820,1.14185986,96381.0,96380.0,3.5e-07]
[1733880360031,1.14185986,96381.0,96370.0,8.57e-05]
[1733880360032,0.50511756,96371.0,96370.0,7e-07]
[1733880360247,0.50511756,96371.0,96360.0,6e-08]
[1733880360248,0.357552,96361.0,96360.0,6e-08]
[1733880360477,0.6527251,96361.0,96360.0,6e-08]
[1733880360704,0.68353144,96361.0,96360.0,6e-08]
[1733880360910,0.89963144,96361.0,96360.0,6e-08]
[1733880361124,0.89963144,96361.0,96350.0,6.6e-07]
[1733880361125,0.4364,96351.0,96350.0,6.6e-07]
[1733880361348,0.7729698,96351.0,96350.0,6.6e-07]
[1733880361555,0.80377614,96351.0,96350.0,2.2e-07]
[1733880361771,0.80377614,96351.0,96301.0,0.0491]
[1733880361772,0.50518156,96341.0,96301.0,0.0491]
[1733880361983,0.50518156,96341.0,96340.0,5e-07]
[1733880361984,0.94014536,96341.0,96340.0,5e-07]
[1733880362200,0.94014536,96341.0,96289.0,0.0491]
[1733880362201,0.29758656,96333.0,96332.0,7e-07]
[1733880362405,0.29758656,96333.0,96330.0,7e-07]
[1733880362406,0.32058656,96331.0,96330.0,7e-07]
[1733880362618,0.4259118,96331.0,96330.0,7e-07]
[1733880362836,0.47597944,96331.0,96330.0,7e-07]
[1733880363052,0.58108273,96331.0,96330.0,7e-07]
[1733880363294,0.58108273,96331.0,96278.0,0.0753]
[1733880363498,0.33600724,96301.0,96300.0,0.00025135]
[1733880364217,0.65275691,96301.0,96300.0,0.00025135]
[1733880364650,0.50517035,96301.0,96300.0,0.00025135]
[1733880364868,0.33600724,96301.0,96300.0,0.00025135]
[1733880365081,0.31300724,96301.0,96300.0,0.00025135]
[1733880365508,0.4605938,96301.0,96300.0,0.00025135]
[1733880365929,0.4735938,96301.0,96300.0,0.00025135]
[1733880366136,0.4645938,96301.0,96300.0,0.00025135]
[1733880366343,0.44511053,96301.0,96300.0,0.00025135]
[1733880366557,0.34700724,96301.0,96300.0,0.00025135]
[1733880366783,0.6375938,96301.0,96300.0,0.00025135]
[1733880366996,0.8496938,96301.0,96300.0,0.00025135]
[1733880367214,0.8496938,96301.0,96300.0,3.5e-07]
[1733880367215,0.87279624,96301.0,96300.0,3.5e-07]
[1733880367424,1.0084716,96301.0,96300.0,3.5e-07]
[1733880368303,1.0084716,96301.0,96252.0,0.0753]
[1733880368304,0.37831156,96281.0,96252.0,0.0753]
[1733880368513,0.37831156,96281.0,96280.0,0.00063851]
[1733880368514,0.4836368,96281.0,96280.0,0.00063851]
[1733880368726,0.6336368,96281.0,96280.0,0.00063851]
[1733880368931,0.97392354,96281.0,96280.0,0.00063851]
[1733880369153,0.97392354,96281.0,96280.0,5.1e-07]
[1733880369154,0.97392367,96281.0,96280.0,5.1e-07]
[1733880369831,1.01044871,96281.0,96280.0,5.1e-07]
[1733880370045,1.01944871,96281.0,96280.0,5.1e-07]
[1733880370250,1.01344871,96281.0,96280.0,5.1e-07]
[1733880370460,1.01498526,96281.0,96280.0,5.1e-07]
[1733880370661,1.03198526,96281.0,96280.0,5.1e-07]
[1733880370864,1.03198526,96281.0,96240.0,8.57e-05]
[1733880370865,0.207811,96241.0,96240.0,8.57e-05]
[1733880371080,0.33391734,96241.0,96240.0,8.57e-05]
[1733880371294,0.35691734,96241.0,96240.0,8.57e-05]
[1733880372208,0.35691734,96241.0,96240.0,0.0002514]
[1733880373039,0.5135039,96241.0,96240.0,0.0002514]
[1733880373467,0.4837228,96241.0,96240.0,0.0002514]
[1733880373676,0.4927228,96241.0,96240.0,0.0002514]
[1733880373877,0.4977228,96241.0,96240.0,0.0002514]
[1733880374086,0.35013624,96241.0,96240.0,0.0002514]
[1733880374295,0.34513624,96241.0,96240.0,0.0002514]
[1733880374710,0.44201365,96241.0,96240.0,0.0002514]
[1733880375127,0.34113624,96241.0,96240.0,0.0002514]
[1733880375360,0.34913624,96241.0,96240.0,0.0002514]
[1733880375826,0.34113624,96241.0,96240.0,0.0002514]
[1733880376042,0.34413624,96241.0,96240.0,0.0002514]
[1733880376478,0.34913624,96241.0,96240.0,0.0002514]
[1733880376680,0.58900021,96241.0,96240.0,0.0002514]
[1733880376892,0.73900021,96241.0,96240.0,4e-07]
[1733880377128,0.73900021,96241.0,96235.0,0.0146452]
[1733880377129,0.29758656,96236.0,96235.0,0.0146452]
[1733880377333,0.44500247,96236.0,96235.0,6.1e-07]
[1733880377540,0.52380247,96236.0,96235.0,6.1e-07]
[1733880377746,0.60995098,96236.0,96235.0,6.1e-07]
[1733880378164,0.46236442,96236.0,96235.0,6.1e-07]
[1733880378369,0.51206031,96236.0,96235.0,6.1e-07]
[1733880378800,0.60994939,96236.0,96235.0,6.1e-07]
[1733880379003,0.64049193,96236.0,96235.0,6.1e-07]
[1733880379211,0.65111198,96236.0,96235.0,6.1e-07]
[1733880379415,0.62056944,96236.0,96235.0,6.1e-07]
[1733880379858,0.63856944,96236.0,96235.0,6.1e-07]
[1733880380064,0.61948036,96236.0,96235.0,6.1e-07]
[1733880380267,0.62958341,96236.0,96235.0,6.1e-07]
[1733880380470,0.62058341,96236.0,96235.0,6.1e-07]
[1733880380676,0.55078341,96236.0,96235.0,6.1e-07]
[1733880380885,0.55978341,96236.0,96235.0,6.1e-07]
[1733880381123,0.55978341,96236.0,96200.0,8.57e-05]
[1733880381124,0.52843656,96223.0,96222.0,6.1e-07]
[1733880381397,0.52843656,96223.0,96222.0,0.00016645]
[1733880381398,0.74727551,96223.0,96222.0,0.00016645]
[1733880381616,0.74727551,96223.0,96222.0,4.5e-07]
[1733880382063,0.77785567,96223.0,96222.0,4.5e-07]
[1733880382941,0.53344501,96223.0,96222.0,4.5e-07]
[1733880383144,0.51335781,96223.0,96222.0,4.5e-07]
[1733880383377,0.49425476,96223.0,96222.0,4.5e-07]
[1733880384108,0.50325476,96223.0,96222.0,4.5e-07]
[1733880384321,0.51025476,96223.0,96222.0,4.5e-07]
[1733880384542,0.48691939,96223.0,96222.0,4.5e-07]
[1733880384793,0.36432314,96223.0,96222.0,4.5e-07]
[1733880384997,0.4987618,96223.0,96222.0,4.5e-07]
[1733880385206,0.4897618,96223.0,96222.0,4.5e-07]
[1733880385418,0.34217524,96223.0,96222.0,4.5e-07]
[1733880385624,0.43271842,96223.0,96222.0,4.5e-07]
[1733880385870,0.32817524,96223.0,96222.0,4.5e-07]
[1733880386895,0.12032524,96223.0,96222.0,4.5e-07]
[1733880387892,0.11432524,96223.0,96222.0,4.5e-07]
[1733880388360,0.10932524,96223.0,96222.0,4.5e-07]
[1733880388831,0.17382124,96223.0,96222.0,4.5e-07]
[1733880389057,0.16682124,96223.0,96222.0,4.5e-07]
[1733880389264,0.18603326,96223.0,96222.0,4.5e-07]
[1733880389470,0.19303326,96223.0,96222.0,4.5e-07]
[1733880389693,0.18903326,96223.0,96222.0,4.5e-07]
[1733880389904,0.13553726,96223.0,96222.0,4.5e-07]
[1733880390748,0.13560731,96223.0,96222.0,4.5e-07]
[1733880392220,0.14758656,96221.0,96200.0,8.57e-05]
[1733880392395,0.15860731,96223.0,96200.0,8.57e-05]
[1733880392396,0.207898,96201.0,96200.0,8.57e-05]
[1733880392589,0.31322324,96201.0,96200.0,8.57e-05]
[1733880392946,0.12464408,96201.0,96200.0,8.57e-05]
[1733880393156,0.10532524,96201.0,96200.0,8.57e-05]
[1733880393385,0.12466071,96201.0,96200.0,8.57e-05]
[1733880394155,0.10532524,96201.0,96200.0,0.21139914]
[1733880394811,0.10532524,96201.0,96200.0,0.29439914]
[1733880395007,0.10532524,96201.0,96200.0,0.0840857]
[1733880395417,0.10532524,96201.0,96200.0,0.0830857]
[1733880395827,0.10632524,96201.0,96200.0,0.0830857]
[1733880396046,0.15753546,96201.0,96200.0,0.0830857]
[1733880396262,0.12569016,96201.0,96200.0,0.0830857]
[1733880396476,0.15667749,96201.0,96200.0,0.0830857]
[1733880396689,0.15570596,96201.0,96200.0,8.57e-05]
[1733880396902,0.36360396,96201.0,96200.0,8.57e-05]
[1733880397128,0.42275366,96201.0,96200.0,8.57e-05]
[1733880397344,0.44575366,96201.0,96200.0,8.57e-05]
[1733880397556,0.44375366,96201.0,96200.0,8.57e-05]
[1733880398594,0.45445676,96201.0,96200.0,8.57e-05]
[1733880398827,0.45445676,96201.0,96180.0,8.58e-05]
[1733880398828,0.207941,96181.0,96180.0,8.58e-05]
[1733880399018,0.44902766,96181.0,96180.0,8.58e-05]
[1733880399649,0.38664696,96181.0,96180.0,8.58e-05]
[1733880400080,0.38864696,96181.0,96180.0,8.58e-05]
[1733880400289,0.38864696,96181.0,96180.0,0.00025164]
[1733880400493,0.38664696,96181.0,96180.0,0.00025164]
[1733880400705,0.37764696,96181.0,96180.0,0.00025164]
[1733880400919,0.16970596,96181.0,96180.0,0.00025164]
[1733880401360,0.13869016,96181.0,96180.0,0.13456746]
[1733880401989,0.16974138,96181.0,96180.0,0.13456746]
[1733880402197,0.16074138,96181.0,96180.0,0.12995164]
[1733880402446,0.16074138,96181.0,96180.0,0.00025164]
[1733880402667,0.16474138,96181.0,96180.0,0.00025164]
[1733880402879,0.16074138,96181.0,96180.0,0.00025164]
[1733880403307,0.16374138,96181.0,96180.0,0.00025164]
[1733880403524,0.20095409,96181.0,96180.0,0.00025164]
[1733880403738,0.22395409,96181.0,96180.0,0.00025164]
[1733880403964,0.24827795,96181.0,96180.0,0.00025164]
[1733880404175,0.25027795,96181.0,96180.0,0.00025164]
[1733880405817,0.24827795,96181.0,96180.0,0.00025164]
[1733880406037,0.25327795,96181.0,96180.0,0.00025164]
[1733880406250,0.26127795,96181.0,96180.0,0.00025164]
[1733880406479,0.24827795,96181.0,96180.0,0.00025164]
[1733880406872,0.20211011,96181.0,96180.0,0.00025164]
[1733880407089,0.16978625,96181.0,96180.0,0.00025164]
[1733880407568,0.20211921,96181.0,96180.0,0.00025164]
[1733880408013,0.16978625,96181.0,96180.0,0.00025164]
[1733880408650,0.16078625,96181.0,96180.0,0.00025164]
[1733880408856,0.16878625,96181.0,96180.0,0.00266508]
[1733880409297,0.12473332,96181.0,96180.0,0.00266508]
[1733880409521,0.13273332,96181.0,96180.0,0.00266508]
[1733880409730,0.13773332,96181.0,96180.0,0.00266508]
[1733880409960,0.13773332,96181.0,96180.0,0.13236508]
[1733880409961,0.02440808,96181.0,96180.0,0.13236508]
[1733880410205,0.207883,96208.0,96191.0,0.207919]
[1733880410441,0.12473332,96207.0,96204.0,0.00241344]
[1733880410648,0.207891,96204.0,96201.0,0.00241344]
[1733880410848,0.04241211,96219.0,96180.0,0.31554682]
[1733880410849,0.12473332,96203.0,96194.0,0.00241344]
[1733880411055,0.207908,96197.0,96194.0,0.00241344]
[1733880411259,0.12473332,96196.0,96194.0,0.00241344]
[1733880411484,0.12473332,96196.0,96192.0,0.00241344]
[1733880411485,0.31323524,96196.0,96192.0,0.00241344]
[1733880411703,0.31323524,96196.0,96180.0,0.31554682]
[1733880411704,0.207913,96194.0,96190.0,0.00241344]
[1733880411909,0.207913,96194.0,96180.0,0.12995164]
[1733880411910,0.207936,96184.0,96180.0,0.12995164]
[1733880412128,0.12462792,96183.0,96181.0,0.00460431]
[1733880412347,0.01930268,96182.0,96180.0,0.13236508]
[1733880412574,0.10532524,96181.0,96180.0,0.12995164]
[1733880412779,0.1267251,96181.0,96180.0,0.00125164]
[1733880412989,0.1257251,96181.0,96180.0,0.00025164]
[1733880413190,0.1247251,96181.0,96180.0,0.00025164]
[1733880413399,0.17878401,96181.0,96180.0,0.00025164]
[1733880413603,0.1477251,96181.0,96180.0,0.00025164]
[1733880414041,0.18407469,96181.0,96180.0,0.00025164]
[1733880414481,0.18807469,96181.0,96180.0,0.00025164]
[1733880414897,0.17577778,96181.0,96180.0,0.00025164]
[1733880415119,0.19877778,96181.0,96180.0,0.00025164]
[1733880415330,0.33091786,96181.0,96180.0,0.00025164]
[1733880415759,0.33391786,96181.0,96180.0,0.00025164]
[1733880415962,0.32691786,96181.0,96180.0,0.00025164]
[1733880416167,0.33291786,96181.0,96180.0,0.00025164]
[1733880416377,0.34191786,96181.0,96180.0,0.00025164]
[1733880416583,0.33591786,96181.0,96180.0,0.00025164]
[1733880416994,0.34191786,96181.0,96180.0,0.00025164]
[1733880419173,0.29886518,96181.0,96180.0,0.00025164]
[1733880419390,0.4477365,96181.0,96180.0,0.00025164]
[1733880419805,0.30014994,96181.0,96180.0,0.00025164]
[1733880420022,0.29886518,96181.0,96180.0,0.00025164]
[1733880420257,0.26782839,96181.0,96180.0,0.00025164]
[1733880420877,0.1627251,96181.0,96180.0,0.00025164]
[1733880421081,0.14332524,96181.0,96180.0,0.00025164]
[1733880421508,0.12032524,96181.0,96180.0,0.00025164]
[1733880422165,0.13945213,96181.0,96180.0,0.00025164]
[1733880422577,0.13045213,96181.0,96180.0,0.00025164]
[1733880422815,0.2146356,96181.0,96180.0,0.00025164]
[1733880423012,0.2446356,96181.0,96180.0,0.00025164]
[1733880423234,0.12745213,96181.0,96180.0,0.00025164]
[1733880423646,0.13645213,96181.0,96180.0,0.00025164]
[1733880423850,0.13345213,96181.0,96180.0,0.00025164]
[1733880424257,0.13845213,96181.0,96180.0,0.00025164]
[1733880425086,0.12945213,96181.0,96180.0,0.00025164]
[1733880425342,0.2378187,96181.0,96180.0,0.00025164]
[1733880425749,0.2238187,96181.0,96180.0,0.00025164]
[1733880425953,0.2348187,96181.0,96180.0,0.00025164]
[1733880426227,0.49941819,96181.0,96180.0,0.00025164]
[1733880426449,0.49941819,96181.0,96137.0,0.0250806]
[1733880426450,0.023,96151.0,96137.0,0.0146452]
[1733880426696,0.10532524,96141.0,96137.0,0.0146452]
[1733880427957,0.10532524,96141.0,96140.0,0.000636]
[1733880429434,0.11132524,96141.0,96140.0,0.000636]
[1733880429645,0.11532524,96141.0,96140.0,0.000636]
[1733880429857,0.19146236,96141.0,96140.0,0.000636]
[1733880430513,0.20194916,96141.0,96140.0,0.000636]
[1733880431153,0.19582602,96141.0,96140.0,0.000636]
[1733880432655,0.1426889,96141.0,96140.0,0.000636]
[1733880432939,0.1222021,96141.0,96140.0,0.000636]